Cogmind - Beta 16 @@@ ROGUE MODE // 2025.11.25 @ 18:23:31 Player: OBLIQUE Result: Destroyed by T8-3PX(h) with Bolt Gun Performance ------------- Evolutions (0) 0 Regions Visited (4) 800 Robots Destroyed (14) 70 Value Destroyed (310) 310 Prototype IDs (18) 360 Alien Tech Used (0) 0 Bonus (800) 800 TOTAL SCORE: 2340 Bonus ------- Registered with UFD 300 Met Optimus in HQ 500 Cogmind --------- Core Integrity 0/250 Matter 300/300 Energy 240/240 System Corruption 0% Temperature Cool (0) Movement Treading (250) Ox1 Location -7/Scraptown Parts ------- > --- POWER (1) -------- Nuclear Core > --- PROPULSION (2) --- Armored Treads Armored Treads > --- UTILITY (2) ------ High-capacity Storage Unit A0-MCA's Component Scanner > --- WEAPON (2) ------- Assault Cannon Improved Grenade Launcher > --- INVENTORY (20) --- Overtuned Treads Overtuned Scrapsphere Armored Huge Wheel Scrap Suit Improved Cooling System High-capacity Matter Pod (200) Advanced Signal Interpreter Seismic Detector Weapon Cycler Makeshift Light Armor Plating Improved Field Recycling Unit (0) Thermic Laser High-powered Shotgun Improved Grenade Launcher CPS Tube (2) Peak State ------------ > --- POWER ------------ Nuclear Core > --- PROPULSION ------- Armored Treads Armored Treads > --- UTILITY ---------- High-capacity Storage Unit A0-MCA's Component Scanner > --- WEAPON ----------- Thermic Laser Assault Cannon > --- INVENTORY -------- Overtuned Treads Overtuned Scrapsphere Armored Huge Wheel Scrap Suit Improved Cooling System High-capacity Matter Pod Advanced Signal Interpreter Seismic Detector Weapon Cycler Makeshift Light Armor Plating Improved Field Recycling Unit Thermic Laser High-powered Shotgun Improved Grenade Launcher Improved Grenade Launcher CPS Tube [Rating: 33] Favorites ----------- Power Nuclear Core Engine Light Ion Engine Power Core Nuclear Core Propulsion Armored Treads Treads Armored Treads Wheel Compact Wheel Utility High-capacity Storage Unit Device Seismic Detector Storage High-capacity Storage Unit Processor A0-MCA's Component Scanner Weapon Small Laser Energy Gun Small Laser Ballistic Gun Light Assault Rifle Ballistic Cannon Assault Cannon Launcher Grenade Launcher Build | -11 -10 -10 -10 -7 ------- Run | Yrd Mat Min Sub Scr Slots Evolved . | . . . . . Power . | . . . . . Propulsion . | . . . . . Utility . | . . . . . Weapon . | . . . . . Parts Attached 25 | 6 3 6 . 10 Power 3 | 1 . 1 . 1 Engine 2 | 1 . 1 . . Core 1 | . . . . 1 Reactor . | . . . . . Propulsion 8 | 2 1 2 . 3 Treads 3 | . 1 . . 2 Leg . | . . . . . Wheel 5 | 2 . 2 . 1 Hover . | . . . . . Flight . | . . . . . Utility 6 | 1 2 1 . 2 Device 2 | . 1 1 . . Storage 3 | 1 1 . . 1 Processor 1 | . . . . 1 Hackware . | . . . . . Protection . | . . . . . Artifact . | . . . . . Weapon 8 | 2 . 2 . 4 Energy Gun 3 | 2 . . . 1 Energy Cannon . | . . . . . Ballistic Gun 1 | . . 1 . . Ballistic Cannon 2 | . . . . 2 Launcher 2 | . . 1 . 1 Special Weapon . | . . . . . Impact Weapon . | . . . . . Slashing Weapon . | . . . . . Piercing Weapon . | . . . . . Special Melee Weapon . | . . . . . Unidentified Prototypes . | . . . . . Parts Lost 6 | . . 5 . 1 Power . | . . . . . Propulsion 2 | . . 2 . . Utility 1 | . . 1 . . Weapon 3 | . . 2 . 1 Highest Loss Streak 5 | . . 5 . 1 To Critical Strikes . | . . . . . Average Backups 15 | 2 8 6 2 17 Power . | . 1 . . . Propulsion 2 | 1 4 2 . 2 Utility 6 | . 1 2 2 7 Weapon 5 | . 1 1 . 6 Tool/Special . | . . . . . Unused Backups 28 | . 1 9 . 18 Power 1 | . . 1 . . Propulsion 6 | . 1 2 . 3 Utility 10 | . . 2 . 8 Weapon 9 | . . 4 . 5 Tool/Special 2 | . . . . 2 Average Slot Usage (%) 64 | . 97 69 85 60 Engine 1 | . 14 5 . . Core 6 | . . . . 7 Treads 13 | . . . . 15 Wheel 10 | . 27 23 28 7 Device 10 | . 11 11 14 10 Storage 13 | . 14 11 14 14 Processor 3 | . . . . 3 Energy Gun 3 | . 28 10 . . Peak Build Rating 33 | 6 8 8 6 33 Average Rating 16 | 4 7 5 6 18 On Entrance 5 | . 6 8 6 6 Avg Prop Armor Cover (%) 5 | . 5 . . . Naked Turns 61 | . . 61 . . Heaviest Build 58 | 10 26 28 10 58 Greatest Support 40 | 20 20 32 32 40 Greatest Overweight (x) 2 | . 1 2 . 1 Average Overweight (x) . | . . . . . Largest Inventory Capacity 20 | 8 15 15 8 20 Average Capacity 18 | 7 13 10 8 19 Most Carried 20 | 6 11 15 3 20 Average Carried 17 | 2 8 6 3 19 Final Capacity 20 | 8 15 8 8 20 Final Carried 17 | 4 11 3 3 17 Class Distribution -------------------- 51% | Mutant 48% | Derelict-Mutant Dominant Class ---------------- Mutant | -10/Materials Mutant | -10/Mines Mutant | -10/Subcaves Derelict-Mutant | -7/Scraptown Resources | -11 -10 -10 -10 -7 ----------- Run | Yrd Mat Min Sub Scr Matter Collected 739 | 260 40 50 . 389 Remotely . | . . . . . Salvage Created 369 | . 237 103 . 29 Parts 23 | . 4 19 . . Haulers Intercepted . | . . . . . Recyclers Shooed . | . . . . . Parts Field Recycled . | . . . . . Retrieved Matter . | . . . . . Parts Self-Destructed . | . . . . . Prevented . | . . . . . Parts Restored . | . . . . . Kills | -11 -10 -10 -10 -7 ------- Run | Yrd Mat Min Sub Scr Combat Hostiles Destroyed 13 | . 6 6 . 1 Guns 12 | . 6 6 . . Cannons 1 | . . . . 1 Classes Destroyed 3 | . 2 1 . . Tunneler 1 | . . 1 . . Swarmer 7 | . 1 6 . . Grunt 5 | . 5 . . . Thug 1 | . . . . 1 Best Kill Streak 4 | . 2 4 . 1 Combat Bots Only 3 | . 2 3 . 1 Max Kills in Single Turn 2 | . 1 2 . 1 Gunslinging . | . . . . . Exploded . | . . . . . Melee . | . . . . . Uniques/NPCs Destroyed . | . . . . . Combat | -11 -10 -10 -10 -7 -------- Run | Yrd Mat Min Sub Scr Hostile Shots Fired 92 | . 23 17 . 52 Missed 20 | . 7 3 . 10 Hits 72 | . 16 14 . 42 Projectile 72 | . 16 14 . 42 AOE 6 | . . 6 . . Critical Strikes 2 | . 1 . . 1 Damage Taken 1017 | . 189 337 . 491 Core 254 | . 8 148 . 98 Absorbed by Shields . | . . . . . Core Remaining (%) 100 | 100 . . . . Volleys Fired 38 | . 17 11 . 10 Largest 2 | . 2 2 . 2 Hottest 122 | . 80 80 . 122 Shots Fired 69 | . 34 20 . 15 Gun 57 | . 34 18 . 5 Cannon 10 | . . . . 10 Launcher 2 | . . 2 . . Special . | . . . . . Kinetic 14 | . . 4 . 10 Thermal 53 | . 34 14 . 5 Explosive 2 | . . 2 . . Electromagnetic . | . . . . . Robot Hit Streak 12 | . 9 6 . 12 Robot Miss Streak 2 | . 2 1 . 1 Penetration Max . | . . . . . Secondary Targets . | . . . . . Shots Hit Robots 49 | . 25 10 . 14 Core Hits 23 | . 12 8 . 3 Critical Kills . | . . . . . Critical Parts Destroyed . | . . . . . Critical Strikes . | . . . . . Melee Attacks . | . . . . . Impact . | . . . . . Slashing . | . . . . . Piercing . | . . . . . Sneak Attacks . | . . . . . Combat Hostiles . | . . . . . Follow-up Attacks . | . . . . . Damage Inflicted 755 | . 287 121 . 347 Guns 475 | . 287 121 . 67 Cannons 280 | . . . . 280 Explosions . | . . . . . Melee . | . . . . . Ramming . | . . . . . Kinetic 295 | . . 15 . 280 Thermal 460 | . 287 106 . 67 Explosive . | . . . . . Electromagnetic . | . . . . . Impact . | . . . . . Slashing . | . . . . . Piercing . | . . . . . Highest Corruption . | . . . . . Average Corruption . | . . . . . Corruption Purged . | . . . . . Corruption Blocked . | . . . . . Overload Shots . | . . . . . Overflow Damage 11 | . . . . 11 Projectiles 11 | . . . . 11 Explosions . | . . . . . Melee . | . . . . . Knockbacks 1 | . . . . 1 Impact . | . . . . . Kinetic 1 | . . . . 1 Secondary . | . . . . . Self-Inflicted Damage . | . . . . . Shots . | . . . . . Rammed . | . . . . . Targets Rammed . | . . . . . Kicked . | . . . . . Crushed . | . . . . . Highest Temperature 366 | . 180 72 . 366 Average Temperature 103 | . 53 30 . 218 Received Heat Transfer 180 | . 108 . . 72 Siege Activations . | . . . . . Martial Activations . | . . . . . Shielding Activations . | . . . . . Robots Disrupted . | . . . . . Combat Hostiles . | . . . . . Robots Corrupted . | . . . . . Combat Hostiles . | . . . . . Parts Fried . | . . . . . Impact Corruptions . | . . . . . Robots Melted . | . . . . . Combat Hostiles . | . . . . . Parts Melted 1 | . 1 . . . Heat Transferred 1050 | . 625 225 . 200 Parts Sabotaged . | . . . . . Parts Stolen . | . . . . . Parts Stripped . | . . . . . Power Chain Reactions . | . . . . . Alert | -11 -10 -10 -10 -7 ------- Run | Yrd Mat Min Sub Scr Maximum Alert Level . | . . . . . Low Security (%) 100 | 100 100 100 . . Level 1 . | . . . . . Level 2 . | . . . . . Level 3 . | . . . . . Level 4 . | . . . . . Level 5 . | . . . . . High Security . | . . . . . Max Security . | . . . . . Peak Influence 135 | . 116 135 . . Initial 40 | . . 40 . . Average 48 | . 41 62 . . Influence Increases 419 | . 238 181 . . Destroy 0b10 Robot/C 240 | . 120 120 . . Destroy 0b10 Robot/NC 5 | . . 5 . . Destroy Leader 50 | . 30 20 . . Successful Hack 28 | . 28 . . . Destroy Structure 6 | . . 6 . . Lose Combat Pursuer 90 | . 60 30 . . Influence Decreases 419 | . 132 276 11 . Entered New Map 73 | . . 66 7 . Time Decay 296 | . 132 160 4 . Lost Part 50 | . . 50 . . Squads Dispatched 2 | . 2 . . . Investigation 1 | . 1 . . . Extermination . | . . . . . Reinforcement 1 | . 1 . . . Assault . | . . . . . Garrison . | . . . . . Intercept . | . . . . . Searches Triggered . | . . . . . Construction Impeded . | . . . . . Haulers Reinforced . | . . . . . Active Scanning Responses . | . . . . . Cargo Convoy Interrupts . | . . . . . Stealth | -11 -10 -10 -10 -7 --------- Run | Yrd Mat Min Sub Scr Distress Signals 2 | . 2 . . . Communications Jammed . | . . . . . Distress Signals . | . . . . . Times Spotted 39 | . 13 8 . 18 Peak Tracking Total 7 | . 5 3 . 7 Tactical Retreats 6 | . 2 1 . 3 Traps | -11 -10 -10 -10 -7 ------- Run | Yrd Mat Min Sub Scr Traps Triggered 1 | . 1 . . . Indirectly . | . . . . . Trap Hack Attempts . | . . . . . Triggered . | . . . . . Disarmed . | . . . . . Reprogrammed . | . . . . . Reused . | . . . . . Traps Extracted . | . . . . . Installed . | . . . . . Triggered . | . . . . . Machines | -11 -10 -10 -10 -7 ---------- Run | Yrd Mat Min Sub Scr Machines Disabled . | . . . . . Max in Single Turn . | . . . . . Machines Repaired . | . . . . . Machines Dismantled . | . . . . . Machines Sabotaged . | . . . . . Overloaded Fab Kills . | . . . . . Hacking | -11 -10 -10 -10 -7 --------- Run | Yrd Mat Min Sub Scr Machines Accessed 13 | . 5 1 . 7 Terminals 6 | . 5 1 . . Fabricators . | . . . . . Repair Stations . | . . . . . Recycling Units . | . . . . . Scanalyzers . | . . . . . Garrison Access . | . . . . . Total Hacks 64 | . 18 2 . 44 Successful 53 | . 9 . . 44 Failed 10 | . 8 2 . . Catastrophic 3 | . 3 . . . Database Lockouts 1 | . 1 . . . Manual 11 | . 9 2 . . Terminals 20 | . 18 2 . . Fabricators . | . . . . . Repair Stations . | . . . . . Recycling Units . | . . . . . Scanalyzers . | . . . . . Garrison Access . | . . . . . Terminal Hacks 53 | . 9 . . 44 Record 43 | . . . . 43 Robot Analysis 3 | . 3 . . . Prototype ID Bank 1 | . 1 . . . Alert Level 1 | . 1 . . . Locate Traps 1 | . 1 . . . Dispatch Records 1 | . 1 . . . Patrol Status 1 | . 1 . . . Zone Layout 1 | . 1 . . . Proto ID Catalog 1 | . . . . 1 Fabricator Hacks . | . . . . . Repair Station Hacks . | . . . . . Recycling Unit Hacks . | . . . . . Scanalyzer . | . . . . . Garrison Access Hacks . | . . . . . Unauthorized Hacks . | . . . . . Terminals . | . . . . . Fabricators . | . . . . . Repair Stations . | . . . . . Recycling Units . | . . . . . Scanalyzers . | . . . . . Garrison Access . | . . . . . Data Cores Recovered . | . . . . . Used . | . . . . . Hacking Detections 6 | . 5 1 . . Full Trace Events 1 | . 1 . . . Feedback Events . | . . . . . Feedback Blocked . | . . . . . Robot Schematics Acquired . | . . . . . Robots Built . | . . . . . Authchips . | . . . . . Time . | . . . . . Total Robot Build Rating . | . . . . . Part Schematics Acquired . | . . . . . Parts Built . | . . . . . Authchips . | . . . . . Time . | . . . . . Total Part Build Rating . | . . . . . Part Studies Acquired . | . . . . . Parts Repaired . | . . . . . Time . | . . . . . Parts Recycled . | . . . . . Recycled Matter . | . . . . . Retrieved Matter . | . . . . . Retrieved Components . | . . . . . Parts Scanalyzed . | . . . . . Part Schematics Acquired . | . . . . . Parts Damaged . | . . . . . Bothacking | -11 -10 -10 -10 -7 ------------ Run | Yrd Mat Min Sub Scr Used RIF Installer . | . . . . . Robots Hacked . | . . . . . Non-combat . | . . . . . Combat . | . . . . . Robot Hacks Applied . | . . . . . Relay Couplers Released . | . . . . . Fabnet Peak Effective % . | . . . . . Robots Rewired . | . . . . . Allies Hacked . | . . . . . Hacks Repelled . | . . . . . Allies | -11 -10 -10 -10 -7 -------- Run | Yrd Mat Min Sub Scr Total Allies . | . . . . . Largest Group . | . . . . . Highest-Rated Group . | . . . . . Highest-Rated Ally . | . . . . . Total Orders . | . . . . . Ally Attacks . | . . . . . Total Damage . | . . . . . Kills . | . . . . . Allies Corrupted . | . . . . . Allies Melted 2 | . . . . 2 Intel | -11 -10 -10 -10 -7 ------- Run | Yrd Mat Min Sub Scr Active Infowar (turns) 3465 | . 309 264 29 2863 Structural 431 | . 309 122 . . Seismic 3034 | . . 142 29 2863 Robot Analysis Total 3 | . 3 . . . Derelict Logs Recovered 2 | . . 1 1 . Drone Launches . | . . . . . Drone Recoveries . | . . . . . Exploration | -11 -10 -10 -10 -7 ------------- Run | Yrd Mat Min Sub Scr Turns Passed 4712 | 47 351 336 29 3949 Spaces Moved 3023 | 40 291 333 26 2333 Core 109 | 3 . 106 . . Treads 878 | . 2 . . 876 Legs . | . . . . . Wheels 2036 | 37 289 227 26 1457 Hover . | . . . . . Flight . | . . . . . Fastest Speed 50 | 50 80 50 100 100 Average Speed 147 | 77 91 82 100 165 Slowest Speed 250 | 80 240 110 100 250 Overloaded Moves . | . . . . . Propulsion Burnouts . | . . . . . Robots Hopped . | . . . . . Potential Cave-ins . | . . . . . Cave-ins Triggered . | . . . . . Exploration Rate (%) 41 | 4 46 64 2 92 Regions Visited 4 Branch Regions 3 Pre-discovered Areas 2 | . . 1 1 . Known Exits Taken . | . . . . . Unknown Exits Taken 4 | 1 1 1 1 . Scrap Searched 9 | . . 1 . 8 Spaces Dug . | . . . . . Terrain Destroyed 11 | . . 11 . . Melee . | . . . . . Projectile . | . . . . . AOE 11 | . . 11 . . Terrain Rammed . | . . . . . Walls Destroyed . | . . . . . Machines Disabled . | . . . . . Actions | -11 -10 -10 -10 -7 --------- Run | Yrd Mat Min Sub Scr Total 3214 | 55 341 374 29 2415 Wait 57 | . 20 15 4 18 Move 3019 | 39 290 332 25 2333 Hop . | . . . . . Pick Up 55 | 10 9 8 . 28 Fast Attach . | . . . . . Attach 21 | 6 1 6 . 8 Detach 3 | . . . . 3 Swap 6 | . 3 1 . 2 Drop 15 | . 1 1 . 13 Fire 38 | . 17 11 . 10 Melee . | . . . . . Ram . | . . . . . Kick . | . . . . . Crush . | . . . . . Escape Stasis . | . . . . . Rewire . | . . . . . Trap . | . . . . . Miscellaneous . | . . . . . Route ------- -11/Scrapyard -10/Materials (discovered 3 exits: [Mat] / *Min x2) -10/Mines (discovered 2 exits: [*Mat] / [*Sub]) -10/Subcaves -7/Scraptown (discovered 2 exits: *Fac x2) History --------- Turn | Location | Event 22 | -11/Scrapyard | Discovered new exit (range 16) 48 | -11/Scrapyard | Entered Materials 53 | -10/Materials | Discovered new exit (range 15) 187 | -10/Materials | Central database locked down 187 | -10/Materials | Discovered new exit (range 15) 298 | -10/Materials | Discovered new exit (range 14) 306 | -10/Materials | Build established: Mutant 399 | -10/Materials | Entered Mines 487 | -10/Mines | Discovered new exit (range 14) 513 | -10/Mines | Assembled infested the area 525 | -10/Mines | Released all parts (2) 526 | -10/Mines | Core integrity fell below 50% 556 | -10/Mines | Lost 5 parts (2n1u2w) 586 | -10/Mines | Found a Scrap Suit stashed away for nefarious purposes 590 | -10/Mines | Found Scrap Suit 672 | -10/Mines | YI-UF0 nonchalantly dropped a Grenade Launcher on the ground 728 | -10/Mines | Discovered new exit (range 7) 735 | -10/Mines | Entered Subcaves 736 | -10/Subcaves | Approached by a straggling Scientist 737 | -10/Subcaves | Learned location of Storage (-7) 758 | -10/Subcaves | Scientist uncovered a shortcut to Scraptown 764 | -10/Subcaves | Entered Scraptown 1345 | -7/Scraptown | Heard Great Nut preacher, LISTEN AND RECITE! 1435 | -7/Scraptown | Visited Fellowship of the Rings 1462 | -7/Scraptown | Visited Red Mages 1575 | -7/Scraptown | Visited Spacefarers 1783 | -7/Scraptown | Discovered new exit (range 11) 1842 | -7/Scraptown | Visited Science Testing Area 1875 | -7/Scraptown | Visited Shadow of the Wyrm 2073 | -7/Scraptown | Visited UFD Registry 2097 | -7/Scraptown | Visited TADAMA 2288 | -7/Scraptown | Registered with UFD as "Hammerchaser" 2318 | -7/Scraptown | Visited Curators Association 2352 | -7/Scraptown | Visited Research Penetration Think Tank 2383 | -7/Scraptown | Visited Abandonware Association 2403 | -7/Scraptown | Learned abandonware demo "REVENGE.EXE" 2403 | -7/Scraptown | Learned abandonware demo "REBOOT5.EXE" 2442 | -7/Scraptown | Visited DA-N13 Charitable Foundation 2454 | -7/Scraptown | Found DCF Scrap (28 items) 2751 | -7/Scraptown | Build established: Derelict-Mutant 3230 | -7/Scraptown | Visited Scrap Suit Storage 3317 | -7/Scraptown | Visited Junk Repository 3375 | -7/Scraptown | Visited Science Guys 3490 | -7/Scraptown | Visited Chapter 10 3565 | -7/Scraptown | Visited A0-MCA Data Center 3580 | -7/Scraptown | Given a C rating by A0-MCA 3586 | -7/Scraptown | Found A0-MCA's Component Scanner 3704 | -7/Scraptown | Visited Cartography Club 4346 | -7/Scraptown | Met Optimus 4346 | -7/Scraptown | Accepted into 0bPrime 4619 | -7/Scraptown | Civil war broke out across Scraptown 4672 | -7/Scraptown | Lost 7 allies 4678 | -7/Scraptown | Core integrity fell below 20% 4703 | -7/Scraptown | Identified exit to Factory 4713 | -7/Scraptown | Destroyed by T8-3PX(h) with Bolt Gun Last Messages --------------- 04702_ Slug penetrates MT-8OQ(j). 04702_ MT-8OQ(j) destroyed. 04703_ Bolt penetrates Optimus. Optimus: You really should get out of here Hammerchaser. Scraptown is unimportant, the mission is important. Take the northeast exit, it's probably the safer route. Loading 1 Scraptown exit... 04704_ Bolt penetrates Wall. 04704_ Penetrated by Bolt. 04704_ Slug penetrates 83-GPY(h). 04705_ Bolt penetrates Optimus. 04706_ Penetrated by Bolt. 04706_ Acquired 10 matter. 04708_ Bolt penetrates Optimus. 04710_ 83-GPY(h) destroyed. 04710_ Penetrated by Bolt. 04712_ Bolt penetrates Optimus. 04713_ Penetrated by Bolt. [Achievement: This Is Interesting...] Map ----- +----------------------------------------------------+ | #?????????????? | | ######### ##########"" """"#####?????????????? | | ####????## ##????????#" =[ "#?????????????????? | | """#####?# #########?#" !""#?????????????????? | | #?# """"""""#?#" *"""#?????????????????? | | " "### ### " ""#?#" """#?????????????????? | | "#"" """ "#?#"""""""#?????????????????? | | """#" """ " ""#?#########?????????????????? | | ####" " """"""""#???????????????????????###?? | | """#" ##"""####???????????????????????# ### | | "#" "" " ######??????????????????????????#!# ! | | " "#" " ############????########????????# # # | | "#"""""" ## #????# # # #????????# | | """####### ## #???## " " ##???????# ### | | ####?????# ##x #???#" #???????# ## | | ########## ## #???# #???????# | | ## #???# =% #???????##### | | #; #???# #???????# | | ########## ## #???# =!= ###?????# | | ????????# ;;! #???# =%! # #?????##### | | ???????##" h*=%*==#;##########;##%*[;;#???????### | | ???????# !%[=%[% *%!%! #???????#"" | | ???????# ![%==! = [=!= #???????#" | | ######## %=! * ! #???????#" | | " =!=* 3 !=/ #???????#" | | # %=%! @ % hr #???????#" | | # ##############;## #???#####" | | # #???#############[ #???#"""" | | # #???? #%= #???#"""" | | # #???? " #! #???#"""" | | #???????""" #???#"""" | | # #???????#"""" # #???#"""" | | # #????????###" # ###?#"""" | | ######## #?????????""" ?# !=""#"#"""" | | ######## #?????????" ?# !%""""#"""" | | """" # #???????? " ??# =*""#######" | | " """ # #???????? " ??# !###?????#" | | """ # #????????""" ???# #########" | | " " #???????????????# [%! | | # #???????????????# | | """ # #???????????????# | | "" # #???????????????# | | """ # ################# | | # | | " # | | """"" # | | """""""# | | ######## | | ## #""""#" | | # #????#" | +----------------------------------------------------+ Best States ------------- Heat Dissipation 25 Energy Generation 14 Energy Capacity 250 Matter Stores 300 Matter Capacity 300 Sight Range 16 Terrain Scan Density 10 Evasion (%) 50 Recoil Reduction 2 Item Schematics ----------------- None Robot Schematics ------------------ None Fabricated ------------ Nothing Repaired ---------- Nothing Studied --------- None Alien Tech Used ----------------- None Achievements -------------- Civilization 2243 Link The Feds Nice Directions, Buddy This Is Interesting... Wiki Contributor Challenges ------------ None Game ------ Seed DroneMiningDrivehammer Manual? 0 Play Time 01:11:34 Cumulative 33.9 hours Start 2025.11.25 @ 11:45:09 End 2025.11.25 @ 18:23:31 Sessions 5 Manual Loads 0 Difficulty Rogue Special Mode None Game No. 16 Rogue 16 Adventurer 0 Explorer 0 Win Type - Total 1 Types 1/0/0/0/0/0/0/0/0/0 Lore% 25 Gallery% 30 Achievement% 29 Wizard Run 0 Options --------- Layout 1 ASCII 0 Keyboard 0 Movement Numpad Keybinds 0 Fullscreen 1 Font 24/Smallcaps Map View 50x35 Zoom Use 0% Tactical HUD 1 Map Filters NONE Filters NONE Steam 1 RUN: 5dc470ef-832a-4c0d-b899-607336e67fb5